bitfinex-derivatives/quotes_ETHF0:USTF0_20251223
["timestamp","ask_amount","ask_price","bid_price","bid_amount"]
[1766479731375,0.00506338,2962.5,2961.6,1.20716547]
[1766479731573,3.377,2962.4,2961.6,1.20716547]
[1766479734278,3.377,2962.4,2961.6,0.00506338]
[1766479734977,3.377,2962.4,2961.7,1.20210209]
[1766479735271,3.377,2962.4,2961.8,3.377]
[1766479743277,0.00506338,2962.5,2961.8,3.377]
[1766479743481,3.38206338,2962.5,2961.8,3.377]
[1766479751078,0.00506338,2962.5,2961.8,3.377]
[1766479751277,3.38206338,2962.5,2961.8,3.377]
[1766479752179,0.00506338,2962.5,2961.8,4.58141927]
[1766479752378,3.377,2962.9,2961.8,3.377]
[1766479753384,0.00506338,2962.6,2961.8,3.377]
[1766479756176,0.00506338,2962.6,2961.6,0.00506338]
[1766479756488,3.38206338,2962.6,2961.7,3.377]
[1766479756688,3.55095338,2962.6,2961.7,3.377]
[1766479758090,0.16889,2962.5,2961.7,3.377]
[1766479758483,0.16889,2962.5,2961.6,0.00506338]
[1766479758781,0.16889,2962.5,2961.6,3.38206338]
[1766479759694,0.1689,2962.4,2961.6,3.38206338]
[1766479759890,3.377,2962.3,2961.6,3.38206338]
[1766479761997,3.377,2962.3,2961.6,0.00506338]
[1766479761998,3.5459,2962.3,2961.6,0.00506338]
[1766479762187,3.5459,2962.3,2961.6,3.38206338]
[1766479763892,0.1689,2962.3,2961.6,3.38206338]
[1766479764193,3.377,2962.2,2961.6,3.38206338]
[1766479764694,0.1689,2962.3,2961.6,3.38206338]
[1766479768788,0.00506338,2962.6,2961.6,3.38206338]
[1766479781706,0.16887,2962.8,2961.8,1.20441927]
[1766479781905,0.16887,2962.8,2961.9,3.377]
[1766479782108,0.16887,2962.8,2962.0,6.274]
[1766479782611,0.00506338,2962.7,2962.0,6.274]
[1766479783120,0.00506338,2962.7,2961.6,0.00506338]
[1766479783409,0.00506338,2962.7,2961.8,6.274]
[1766479786906,0.16887,2962.8,2961.8,6.274]
[1766479787307,3.38134335,2963.3,2962.0,1.20441927]
[1766479787508,0.16885,2963.2,2962.1,3.377]
[1766479789807,0.16885,2963.2,2962.2,5.347]
[1766479790003,0.16885,2963.2,2962.3,3.377]
[1766479790914,0.16885,2963.2,2961.7,1.20441927]
[1766479791114,0.16885,2963.2,2961.8,18.092]
[1766479793216,0.16885,2963.2,2961.9,9.651]
[1766479797320,0.16886,2963.1,2961.9,9.651]
[1766479797817,0.16886,2963.1,2961.6,0.00506338]
[1766479798022,3.377,2963.0,2962.1,1.20393727]
[1766479798221,3.377,2963.0,2962.2,7.422]
[1766479798422,0.16886,2963.1,2962.3,1.20393727]
[1766479799820,0.015321,2962.7,2962.3,1.20393727]
[1766479800021,0.015321,2962.7,2961.6,0.00506338]
[1766479800222,0.015321,2962.7,2962.0,1.20393727]
[1766479800416,0.015321,2962.7,2962.1,3.377]
[1766479800611,0.015321,2962.7,2962.2,6.273]
[1766479800815,0.015321,2962.5,2962.2,6.273]
[1766479801931,0.015321,2962.4,2962.2,6.273]
[1766479802333,0.16886,2963.1,2962.2,6.273]
[1766479803936,0.16886,2963.1,2962.0,1.20393727]
[1766479804127,0.16886,2963.1,2962.1,4.569]
[1766479804328,0.16886,2963.1,2962.2,9.649]
[1766479804528,0.16886,2963.1,2962.0,1.20393727]
[1766479804730,0.16886,2963.1,2962.1,1.193]
[1766479804931,0.16886,2963.1,2962.2,3.377]
[1766479810441,0.16886,2963.0,2962.2,3.377]
[1766479812641,0.16886,2963.0,2962.2,4.58093727]
[1766479813441,0.16886,2963.0,2962.2,3.377]
[1766479815939,0.16887,2962.9,2961.6,0.00506338]
[1766479816142,0.16887,2962.9,2961.7,10.84993727]
[1766479816544,0.16887,2962.9,2961.9,1.20393727]
[1766479816744,0.16887,2962.9,2962.0,3.377]
[1766479822647,1.20393727,2962.6,2961.6,0.00506338]
[1766479822838,1.37280727,2962.8,2961.7,10.68093727]
[1766479823044,0.16887,2962.8,2961.9,1.20393727]
[1766479823244,0.16887,2962.8,2962.0,3.377]
[1766479826347,3.377,2962.9,2962.1,1.20393727]
[1766479826649,1.20828062,2963.3,2962.1,1.20393727]
[1766479826846,3.38134335,2963.3,2962.3,1.20393727]
[1766479827049,3.38134335,2963.3,2962.4,3.377]
[1766479827454,4.58528062,2963.3,2962.4,3.377]
[1766479829963,4.75412062,2963.3,2962.4,3.377]
[1766479830163,1.20393727,2963.1,2962.4,3.377]
[1766479830352,1.20393727,2963.1,2962.1,4.406]
[1766479830557,1.20393727,2963.1,2962.2,3.377]
[1766479831164,0.16885,2963.2,2962.2,3.377]
[1766479834565,0.16885,2963.2,2962.3,1.20393727]
[1766479834766,3.54585,2963.2,2962.3,1.20393727]
[1766479836268,3.54585,2963.2,2962.2,3.377]
[1766479837265,3.54585,2963.2,2962.0,1.20393727]
[1766479837473,3.54585,2963.2,2962.1,4.645]
[1766479838367,0.16886,2963.1,2962.1,4.645]
[1766479838565,1.37279727,2963.1,2962.1,4.645]
[1766479838971,0.16886,2963.1,2962.1,4.645]
[1766479839170,0.16886,2963.1,2962.0,1.20393727]
[1766479839373,0.16886,2963.1,2962.1,4.889]
[1766479840274,0.16886,2963.1,2962.2,1.20393727]
[1766479844565,0.16886,2963.1,2962.1,4.889]
[1766479852588,0.16886,2963.1,2962.2,1.20393727]
[1766479858999,0.16886,2963.1,2962.1,4.889]
[1766479862599,0.16886,2963.1,2961.8,1.20388597]
[1766479862793,0.16886,2963.1,2962.2,6.259]
[1766479863097,0.16886,2963.1,2962.3,3.377]
[1766479863597,0.16886,2963.1,2962.4,3.377]
[1766479870902,0.16886,2963.0,2962.4,3.377]
[1766479871203,3.377,2962.9,2962.4,3.377]
[1766479872401,3.377,2962.9,2962.0,3.377]
[1766479872402,0.16888,2962.7,2962.0,3.377]
[1766479872600,0.16891,2962.2,2961.6,0.00506338]
[1766479872808,1.37279597,2962.1,2961.5,0.00425711]
[1766479873306,0.16891,2962.1,2961.4,3.377]
[1766479873804,0.00506338,2962.0,2961.5,0.00506338]
[1766479874206,0.00506338,2962.0,2961.5,0.00789004]
[1766479878107,0.16891,2962.1,2961.5,0.00789004]
[1766479878611,3.54591,2962.1,2961.5,0.00789004]
[1766479878807,3.54591,2962.1,2961.3,3.377]
[1766479879810,3.54591,2962.1,2961.4,0.00506338]
[1766479879811,0.00506338,2962.0,2961.4,0.00506338]
[1766479882812,33.776,2963.5,2961.4,0.00506338]
[1766479883112,0.16889,2962.5,2961.4,0.00506338]
[1766479883313,3.54589,2962.5,2961.4,0.00506338]
[1766479884813,0.16889,2962.5,2961.5,1.20388597]
[1766479885009,3.377,2962.7,2961.6,9.632]
[1766479886110,3.377,2962.7,2961.4,0.00506338]
[1766479886315,1.37277597,2962.5,2961.5,3.377]
[1766479886517,3.5459,2962.4,2961.5,3.377]
[1766479889820,0.1689,2962.3,2961.5,3.377]
[1766479892720,1.37279597,2962.2,2961.4,0.00506338]
[1766479892920,3.377,2962.1,2961.4,0.00506338]
[1766479893519,0.16891,2962.2,2961.3,0.00360031]
[1766479893818,3.377,2962.1,2961.3,0.00360031]
[1766479894516,0.00506338,2962.0,2961.4,0.00506338]
[1766479894822,0.00506338,2962.0,2961.3,0.00360031]
[1766479895720,0.00506338,2962.0,2961.4,0.00506338]
[1766479896231,3.38206338,2962.0,2961.4,0.00506338]
[1766479896415,3.38206338,2962.0,2961.3,0.00360031]
[1766479897222,3.38206338,2962.0,2961.2,3.377]
[1766479897424,3.38206338,2962.0,2961.3,0.00506338]
[1766479898018,0.00506338,2962.0,2961.3,0.00506338]
[1766479898224,0.00506338,2962.0,2961.3,0.00820334]
[1766479899423,0.00166338,2962.0,2961.3,0.00820334]
[1766479900624,0.16893,2961.8,2961.3,0.00820334]
[1766479906331,0.16893,2961.8,2961.4,3.378]
[1766479907233,0.16893,2961.8,2961.3,0.00820334]
[1766479912521,1.20388597,2961.6,2961.3,0.00820334]
[1766479912726,3.378,2961.5,2960.5,3.378]
[1766479913833,3.378,2961.5,2960.7,0.00506338]
[1766479915036,1.37282597,2961.6,2960.7,0.00506338]
[1766479915344,3.378,2961.5,2960.7,0.00506338]
[1766479916043,1.37282597,2961.6,2960.7,0.00506338]
[1766479916339,3.378,2961.4,2960.7,0.00506338]
[1766479917245,3.378,2961.4,2960.5,3.3820371]
[1766479917736,3.378,2961.4,2960.5,0.0040371]
[1766479918036,1.20388597,2961.3,2960.5,0.0040371]
[1766479918241,1.20388597,2961.3,2960.5,3.16664651]
[1766479919160,1.20388597,2961.0,2960.5,3.16910256]
[1766479919441,1.20772771,2961.0,2960.5,2.71810256]
[1766479919936,1.20576057,2960.9,2960.5,2.71810256]
[1766479920140,0.00384174,2961.0,2960.4,0.00171218]
[1766479920141,1.20576057,2960.7,2960.4,0.00171218]
[1766479920436,0.00384174,2961.0,2958.6,4.23636877]
[1766479920437,1.20576057,2960.5,2959.4,3.378]
[1766479920643,1.20576057,2960.0,2959.4,3.378]
[1766479920837,0.00384174,2961.0,2959.8,1.20576057]
[1766479921143,3.378,2960.9,2959.9,3.378]
[1766479921345,0.00506338,2960.7,2959.9,3.378]
[1766479921845,0.00384174,2961.0,2959.9,3.378]
[1766479922144,3.38184174,2961.0,2959.9,3.378]
[1766479922345,3.38184174,2961.0,2960.1,1.20576057]
[1766479922543,0.16891,2962.2,2960.7,1.20576057]
[1766479922749,0.00506338,2961.7,2961.2,0.00506338]
[1766479922946,4.58376057,2961.6,2960.8,3.378]
[1766479923545,4.58777691,2961.6,2960.8,3.378]
[1766479925247,1.20576057,2961.4,2960.8,3.378]
[1766479925549,4.58777691,2961.6,2960.8,3.378]
[1766479927050,4.58777691,2961.6,2960.5,45.826]
[1766479927051,1.20576057,2961.2,2960.5,40.8]
[1766479927254,4.58376057,2961.2,2960.5,44.178]
[1766479927549,3.378,2961.2,2960.5,3.378]
[1766479927958,0.00401634,2961.6,2960.5,4.58376057]
[1766479928151,0.00401634,2961.6,2960.7,1.20576057]
[1766479928343,0.00401634,2961.6,2960.8,3.378]
[1766479928746,0.00401634,2961.6,2960.6,47.053]
[1766479928747,1.20576057,2961.5,2960.6,47.053]
[1766479928950,4.58376057,2961.5,2960.6,40.8]
[1766479929150,3.378,2961.5,2960.7,3.378]
[1766479929547,0.00401634,2961.6,2960.7,3.378]
[1766479929753,3.378,2961.5,2960.7,3.378]
[1766479930951,0.00401634,2961.6,2961.0,1.20576057]
[1766479931153,0.00506338,2961.7,2961.2,1.20576057]
[1766479931351,3.378,2961.8,2961.2,1.21082395]
[1766479931553,3.378,2961.9,2961.2,1.21082395]
[1766479932150,0.00394442,2961.9,2961.3,3.378]
[1766479932460,0.0090078,2961.9,2961.3,3.378]
[1766479938764,0.0090078,2961.9,2961.2,0.00506338]
[1766479941263,3.3870078,2961.9,2961.2,0.00506338]
[1766479943264,0.0090078,2961.9,2961.2,0.00506338]
[1766479943464,3.3870078,2961.9,2961.2,0.00506338]
[1766479943770,0.0090078,2961.9,2961.2,0.00506338]
[1766479944070,3.3870078,2961.9,2961.2,0.00506338]
[1766479944370,4.59276837,2961.9,2961.1,3.378]
[1766479948977,3.3870078,2961.9,2961.1,3.378]
[1766479949375,1.20576057,2961.7,2961.1,3.378]
[1766479949576,4.59276837,2961.9,2961.1,3.378]
[1766479949876,3.3870078,2961.9,2961.1,3.378]
[1766479957675,0.0090078,2961.9,2961.1,4.58376057]
[1766479957876,3.378,2961.8,2961.1,4.58376057]
[1766479958282,3.378,2961.8,2961.1,3.378]
[1766479959478,0.0090078,2961.9,2961.5,1.20576057]
[1766479959684,3.378,2962.3,2961.7,1.20576057]
[1766479959877,0.16889,2962.6,2961.8,3.378]
[1766479960274,1.37465057,2962.6,2961.8,3.378]
[1766479960776,0.00506338,2962.5,2961.9,0.00506338]
[1766479960975,0.00506338,2962.5,2961.9,0.00883104]
[1766479964382,1.21082395,2962.5,2961.9,0.00883104]
[1766479965776,3.377,2962.4,2961.9,0.00883104]
[1766479965980,3.377,2962.4,2961.8,3.378]
[1766479966888,3.377,2962.4,2961.8,3.38234784]
[1766479969791,0.17395338,2962.5,2961.8,3.38234784]
[1766479969989,3.377,2962.4,2961.8,3.38234784]
[1766479970485,3.377,2962.4,2961.8,0.00434784]
[1766479970685,3.377,2962.4,2961.8,4.784e-05]
[1766479971385,3.377,2962.4,2960.8,1.20576057]
[1766479971386,0.16893,2961.8,2960.8,1.20576057]
[1766479971593,0.16893,2961.8,2961.2,1.20576057]
[1766479972286,0.16893,2961.8,2961.2,1.20975002]
[1766479973589,0.16893,2961.8,2961.2,0.00398945]
[1766479975186,0.16893,2961.8,2961.3,3.377]
[1766479976688,1.20576057,2961.7,2961.2,0.00398945]
[1766479976887,1.20576057,2961.7,2961.0,3.377]
[1766479977796,1.20576057,2961.7,2961.0,3.38023764]
[1766479978790,1.20576057,2961.7,2961.0,0.00323764]
[1766479978992,1.20576057,2961.7,2961.0,3.38023764]
[1766479979189,1.20576057,2961.5,2961.0,3.38023764]
[1766479979392,1.20576057,2961.5,2961.0,3.37497085]
[1766479980000,3.377,2961.6,2961.0,3.37497085]
[1766479980302,3.377,2961.6,2961.0,3.37869547]
[1766479981799,0.16893,2961.8,2961.0,3.37869547]
[1766479981998,3.378,2961.7,2961.0,3.37869547]
[1766479982395,0.16893,2961.8,2961.0,3.37869547]
[1766479982695,0.1689,2962.4,2961.0,3.37869547]
[1766479982905,3.693,2962.3,2961.0,3.37869547]
[1766479986099,6.52109565,2962.4,2961.0,3.37869547]
[1766479986301,3.378,2962.3,2961.0,3.37869547]
[1766479986497,3.378,2962.2,2961.1,1.20519565]
[1766479986701,0.1689,2962.4,2961.1,1.20519565]
[1766479986904,3.378,2962.3,2961.1,1.20519565]
[1766479987102,0.1689,2962.4,2961.4,1.20519565]
[1766479987299,3.378,2962.3,2961.5,3.378]
[1766479987601,0.1689,2962.4,2961.5,3.378]
[1766479988004,3.378,2962.3,2961.5,3.378]
[1766479991405,0.00506338,2962.5,2961.5,4.58319565]
[1766479995306,0.00506338,2962.5,2961.6,40.8]
[1766479999115,0.00506338,2962.5,2961.7,6.261]
[1766479999314,0.00506338,2962.5,2961.8,3.377]
[1766480000210,0.00506338,2962.5,2961.8,6.267]
[1766480000426,0.00506338,2962.5,2961.9,3.377]
[1766480018527,0.00506338,2962.5,2961.3,8.444]
[1766480018528,9.101,2962.4,2961.3,3.377]
[1766480022028,9.2699,2962.4,2961.1,40.8]
[1766480022236,1.20519565,2962.2,2961.0,3.38072462]
[1766480022437,3.377,2962.1,2961.0,3.38072462]
[1766480023228,9.237,2962.0,2961.1,1.20519565]
[1766480027938,9.237,2962.0,2961.0,0.00372462]
[1766480029135,0.1689,2962.3,2961.0,0.00372462]
[1766480029336,3.45,2962.2,2961.0,0.00372462]
[1766480036137,4.607,2962.1,2961.0,0.00372462]
[1766480036337,3.377,2962.0,2961.0,0.00372462]
[1766480038151,3.377,2962.0,2961.0,40.80372462]
[1766480042055,3.377,2962.0,2961.1,1.20472083]
[1766480043134,1.37362083,2962.3,2961.1,1.20472083]
[1766480043340,4.658,2962.2,2961.1,1.20472083]
[1766480044151,1.37362083,2962.3,2961.1,1.20472083]
[1766480044456,9.239,2962.2,2961.1,1.20472083]
[1766480049749,1.37362083,2962.3,2961.1,1.20472083]
[1766480050055,9.239,2962.1,2961.1,1.20472083]
[1766480052356,9.239,2962.1,2961.0,0.00372462]
[1766480052654,9.239,2962.0,2961.0,0.00372462]
[1766480053746,5.861,2961.9,2961.0,0.00372462]
[1766480053947,9.239,2961.9,2961.0,0.00372462]
[1766480060660,9.239,2961.8,2961.0,0.00372462]
[1766480061059,9.239,2961.8,2960.4,3.02597769]
[1766480061360,1.20472083,2961.1,2960.2,3.378]
[1766480061558,1.20472083,2962.4,2960.9,1.20472083]
[1766480061857,1.20472083,2962.2,2961.1,1.20472083]
[1766480062056,1.37363083,2962.2,2961.1,0.00316692]
[1766480062462,0.00506338,2961.9,2961.4,0.00506338]
[1766480062662,8.167,2961.8,2961.1,0.00316692]
[1766480063154,0.00506338,2961.9,2961.1,0.00316692]
[1766480063362,0.00506338,2961.9,2961.1,1.20788775]
[1766480063752,3.576,2961.8,2961.1,1.20788775]
[1766480064559,3.378,2961.7,2961.1,1.20788775]
[1766480064960,3.378,2961.7,2961.1,0.00316692]
[1766480066555,3.378,2961.7,2960.8,1.20472083]
[1766480067262,3.378,2961.7,2960.9,40.8]
[1766480067562,3.378,2961.7,2960.9,40.80364609]
[1766480067761,3.378,2961.7,2960.9,0.00364609]
[1766480068560,3.378,2961.7,2960.7,5.26472083]
[1766480069461,3.378,2961.7,2960.7,5.2678623]
[1766480070162,3.378,2961.7,2960.7,4.5858623]
[1766480074273,3.378,2961.7,2960.7,3.38114147]
[1766480074667,3.378,2961.7,2960.7,4.5858623]
[1766480077774,3.378,2961.7,2960.7,3.38114147]
[1766480077969,3.378,2961.7,2960.8,1.20472083]
[1766480081272,3.378,2961.7,2960.7,10.9618623]
[1766480084475,3.378,2961.7,2960.7,51.7618623]
[1766480090394,3.378,2961.7,2960.7,50.55714147]
[1766480090577,3.378,2961.7,2960.7,51.7618623]
[1766480092389,0.00506338,2961.9,2960.9,1.20472083]
[1766480092591,9.239,2961.8,2960.9,1.20472083]
[1766480093194,0.00506338,2961.9,2960.9,1.20472083]
[1766480093380,9.239,2961.8,2960.9,1.20472083]
[1766480093690,3.522,2961.7,2960.9,1.20472083]
[1766480094991,0.00506338,2961.9,2960.9,1.20472083]
[1766480095191,8.274,2961.8,2960.9,1.20472083]
[1766480098692,0.00506338,2961.9,2960.9,1.20472083]
[1766480098993,5.861,2961.7,2961.1,1.20472083]
[1766480099189,0.00506338,2961.9,2961.1,1.20472083]
[1766480099384,9.239,2961.8,2961.1,1.20472083]
[1766480100394,0.00506338,2961.9,2961.1,1.20472083]
[1766480100590,9.239,2961.8,2961.1,1.20472083]
[1766480103193,9.239,2961.8,2960.9,1.20472083]
[1766480104093,9.239,2961.8,2960.7,51.76205692]
[1766480104296,9.239,2961.7,2960.7,50.55714147]
[1766480104493,0.00506338,2961.9,2960.8,1.20491545]
[1766480104799,9.239,2961.8,2960.8,1.20491545]
[1766480105000,0.00506338,2961.9,2960.8,1.20491545]
[1766480105201,9.239,2961.8,2960.8,1.20491545]
[1766480105402,0.00506338,2961.9,2960.8,1.20491545]
[1766480105603,9.239,2961.8,2960.8,1.20491545]
[1766480107204,0.00506338,2961.9,2960.8,1.20491545]
[1766480107404,3.378,2961.8,2961.4,1.20491545]
[1766480107604,0.00506338,2961.9,2961.4,1.20491545]
[1766480107807,3.378,2961.8,2961.4,1.20491545]
[1766480108398,3.378,2961.8,2961.1,1.20491545]
[1766480110403,5.86606338,2961.9,2961.1,1.20491545]
[1766480110606,3.378,2961.8,2961.1,1.20491545]
[1766480112203,0.16884,2963.5,2961.7,1.20491545]
[1766480112404,3.378,2963.4,2962.2,1.20491545]
[1766480112704,3.378,2963.4,2962.2,4.742]
[1766480113302,0.00506338,2963.1,2962.2,4.742]
[1766480113506,7.542,2963.0,2962.2,4.742]
[1766480113701,7.542,2963.0,2962.2,3.378]
[1766480121207,7.542,2963.0,2961.9,47.278]
[1766480121514,0.00506338,2963.1,2961.9,6.478]
[1766480121711,9.237,2963.0,2961.9,6.478]
[1766480122110,9.237,2963.0,2961.9,7.68291545]
[1766480122311,5.859,2962.9,2961.9,7.68291545]
[1766480122508,3.377,2962.8,2961.9,7.68291545]
[1766480122808,5.859,2962.9,2962.2,1.20491545]
[1766480123109,5.859,2962.9,2962.3,3.377]
[1766480126320,3.377,2963.0,2962.3,3.377]
[1766480127519,0.00506338,2963.1,2962.3,3.377]
[1766480127710,3.377,2963.0,2962.3,3.377]
[1766480129820,3.377,2963.0,2962.3,2.9273]
[1766480130923,0.00506338,2963.1,2962.3,2.9273]
[1766480131125,0.00506338,2963.1,2962.3,4.13221545]
[1766480131526,3.377,2963.0,2962.3,4.13221545]
[1766480132830,0.00506338,2963.1,2962.3,4.13221545]
[1766480133025,3.38206338,2963.1,2962.3,4.13221545]
[1766480135236,3.38206338,2963.1,2962.3,2.9273]
[1766480137125,0.00506338,2963.1,2962.3,2.9273]
[1766480137325,3.377,2963.0,2962.3,2.9273]
[1766480137522,0.00506338,2963.1,2962.3,2.9273]
[1766480137715,3.377,2963.0,2962.3,2.9273]
[1766480140032,0.00506338,2963.1,2962.3,2.9273]
[1766480140226,3.38206338,2963.1,2962.3,2.9273]
[1766480140426,3.38206338,2963.1,2962.3,4.13221545]
[1766480140427,0.00506338,2963.1,2962.3,4.13221545]
[1766480141019,0.00258832,2963.4,2962.3,4.13221545]
[1766480141221,3.37958832,2963.4,2962.3,4.13221545]
[1766480141417,3.37958832,2963.4,2962.3,2.9273]
[1766480142129,0.00506338,2963.1,2962.6,0.00506338]
[1766480142330,0.00506338,2963.1,2962.7,3.376]
[1766480143229,3.37958832,2963.4,2962.7,3.376]
[1766480143431,0.00258832,2963.4,2962.7,3.376]
[1766480144234,0.00506338,2963.3,2962.7,3.376]
[1766480145533,0.00258832,2963.4,2962.7,3.376]
[1766480146636,0.00506338,2963.3,2962.7,3.376]
[1766480147627,0.00506338,2963.3,2962.8,3.376]
[1766480147934,0.00506338,2963.3,2962.8,2.92808549]
[1766480151239,0.00506338,2963.3,2962.8,0.00238549]
[1766480167552,1.20867268,2963.3,2962.7,3.1792]
[1766480167852,1.20867268,2963.3,2962.5,6.468]
[1766480167853,1.2036093,2963.0,2962.5,6.468]
[1766480168248,3.376,2963.1,2962.5,6.468]
[1766480168648,3.376,2963.1,2962.5,6.471579]
[1766480168849,3.376,2963.1,2962.5,6.47664238]
[1766480169560,0.00506338,2963.3,2962.5,6.47664238]
[1766480169748,3.376,2963.2,2962.5,6.47664238]
[1766480170261,0.00506338,2963.3,2962.5,6.47664238]
[1766480170452,3.38106338,2963.3,2962.6,1.2036093]
[1766480170652,3.38106338,2963.3,2962.5,6.47664238]
[1766480175663,3.38106338,2963.3,2962.5,7.68025168]
[1766480175965,3.38106338,2963.3,2962.7,1.2036093]
[1766480175966,0.00506338,2963.3,2962.7,1.2036093]
[1766480176156,3.37858832,2963.4,2962.7,4.5796093]
[1766480176359,0.00258832,2963.4,2962.7,4.5796093]
[1766480176660,0.00258832,2963.4,2962.7,3.376]
[1766480177071,0.00506338,2963.3,2962.7,3.376]
[1766480181364,1.2036093,2963.1,2962.5,6.47664238]
[1766480181667,4.5796093,2963.1,2962.5,6.47664238]
[1766480181868,3.376,2963.1,2962.5,6.47664238]
[1766480183770,3.376,2963.1,2962.5,0.00864238]
[1766480183971,4.5796093,2963.1,2962.5,0.00864238]
[1766480186975,4.5796093,2963.1,2962.4,3.376]
[1766480187878,4.5796093,2963.1,2962.5,0.00506338]
[1766480190773,3.376,2963.1,2962.5,0.00506338]
[1766480199977,4.5796093,2963.1,2962.5,0.00506338]
[1766480203288,1.2036093,2963.1,2962.5,0.00506338]
[1766480208885,1.20867268,2963.3,2962.5,0.00506338]
[1766480210086,1.20867268,2963.3,2962.4,0.00405061]
[1766480211188,1.20867268,2963.3,2962.6,0.00506338]
[1766480211588,1.20867268,2963.3,2962.4,0.00405061]
[1766480212177,0.00506338,2963.3,2962.4,0.00405061]
[1766480221190,1.2036093,2963.2,2962.4,0.00405061]
[1766480221899,1.2036093,2962.8,2961.8,40.8]
[1766480222193,0.00506338,2963.3,2961.8,1.2036093]
[1766480222392,1.2036093,2963.1,2961.8,1.2036093]
[1766480222600,0.00506338,2963.3,2961.8,1.2036093]
[1766480222794,1.2036093,2963.2,2962.0,1.2036093]
[1766480224985,1.20867268,2963.3,2962.0,1.2036093]
[1766480225794,1.20867268,2963.3,2961.7,40.80299256]
[1766480225995,0.00506338,2963.3,2961.8,1.20397483]
[1766480228298,0.00506338,2963.3,2961.7,40.80299256]
[1766480240012,0.00506338,2963.3,2961.7,42.00696739]
[1766480249016,0.00506338,2963.3,2961.7,45.03294508]
[1766480249317,0.00506338,2963.3,2961.8,1.20397483]
[1766480262528,0.00258832,2963.4,2962.4,1.20397483]
[1766480262732,0.00258832,2963.4,2962.1,1.20397483]
[1766480263531,0.00506338,2963.0,2962.5,0.00506338]
[1766480264124,1.37277483,2964.2,2962.5,0.00506338]
[1766480264625,0.1688,2964.1,2962.5,0.00506338]
[1766480265029,0.00506338,2963.6,2962.5,0.00506338]
[1766480265232,0.0077734,2963.6,2962.5,0.00506338]
[1766480269333,0.0077734,2963.6,2962.7,1.20397483]
[1766480270327,0.0077734,2963.6,2962.5,1.20903821]
[1766480270834,0.0077734,2963.6,2962.5,0.00506338]
[1766480273733,1.20397483,2963.5,2962.5,0.00506338]
[1766480274331,1.20397483,2963.2,2962.5,0.00506338]
[1766480274534,1.20397483,2963.2,2961.7,43.82897025]
[1766480274838,1.20397483,2963.2,2961.7,40.80299256]
[1766480275645,1.20397483,2963.2,2962.2,0.00506338]
[1766480276745,1.20397483,2962.9,2962.2,0.00506338]
[1766480278140,1.20397483,2963.0,2962.2,0.00506338]
[1766480278744,1.20397483,2962.7,2961.7,0.00299256]
[1766480279841,1.20397483,2962.4,2961.7,0.00299256]
[1766480280043,1.20397483,2962.1,2961.0,40.8]
[1766480280345,0.00506338,2961.8,2961.0,40.8]
[1766480281042,1.37286483,2962.6,2961.0,40.80343085]
[1766480281437,1.20397483,2962.3,2961.0,40.80343085]
[1766480282038,0.00506338,2961.9,2961.4,0.00506338]
[1766480282542,0.00506338,2961.9,2961.0,40.80343085]
[1766480283439,0.00506338,2961.9,2961.0,0.00343085]
[1766480284042,0.00506338,2961.9,2961.0,40.80343085]
[1766480284350,0.00506338,2961.9,2961.0,0.00343085]
[1766480291550,1.20493342,2961.8,2961.0,0.00343085]
[1766480292248,1.20493342,2961.7,2961.0,0.00343085]
[1766480294251,1.20493342,2961.5,2961.0,0.00343085]
[1766480294447,1.20493342,2961.5,2960.5,40.8]
[1766480294646,1.20493342,2961.1,2960.5,40.8]
[1766480294847,1.20493342,2961.1,2960.0,1.20493342]
[1766480295351,0.0040572,2961.1,2960.1,40.8]
[1766480297654,1.20899062,2961.1,2960.1,40.8]
[1766480298352,0.0040572,2961.1,2960.1,40.8]
[1766480298942,0.0040572,2961.1,2960.4,1.20493342]
[1766480299141,1.20493342,2961.7,2960.4,1.20493342]
[1766480299854,1.3789268,2961.9,2960.7,1.20493342]
[1766480300045,1.20493342,2961.7,2960.5,1.20493342]
[1766480300354,0.0037897,2961.7,2960.8,1.20493342]
[1766480300946,0.0037897,2961.7,2961.2,1.20493342]
[1766480301151,0.00506338,2961.9,2961.2,1.20493342]
[1766480301450,0.00506338,2961.9,2961.0,1.20493342]
[1766480302052,0.00870371,2961.9,2961.0,1.20493342]
[1766480302653,0.00870371,2961.9,2961.2,1.20493342]
[1766480303046,0.00870371,2961.9,2961.0,1.20493342]
[1766480303857,0.00870371,2961.9,2960.3,0.16901]
[1766480304054,0.00870371,2961.9,2961.0,1.20493342]
[1766480306158,0.00870371,2961.9,2961.2,1.20493342]
[1766480313057,0.00870371,2961.9,2961.0,1.20493342]
[1766480314856,0.00870371,2961.9,2960.8,1.20493342]
[1766480315263,1.20493342,2961.8,2960.3,3.19498769]
[1766480315462,1.20493342,2961.8,2960.7,1.20493342]
[1766480315761,0.00870371,2961.9,2960.7,1.20493342]
[1766480324963,1.20493342,2961.8,2960.3,3.19498769]
[1766480325164,0.00870371,2961.9,2960.7,1.20493342]
[1766480330672,0.00870371,2961.9,2960.6,1.20493342]
[1766480332376,1.20493342,2961.6,2960.4,3.02597769]
[1766480332673,1.20493342,2961.6,2960.4,1.20493342]
[1766480334875,1.20493342,2961.8,2960.4,1.20493342]
[1766480337480,1.20493342,2961.8,2960.6,1.20493342]
[1766480337670,0.00870371,2961.9,2960.6,1.20493342]
[1766480337869,0.00870371,2961.9,2961.0,1.20493342]
[1766480338066,0.00870371,2961.9,2960.3,0.16901]
[1766480338067,0.00870371,2961.9,2961.2,1.20493342]
[1766480338377,0.00870371,2961.9,2961.0,1.20493342]
[1766480338974,0.00870371,2961.9,2960.8,1.20493342]
[1766480339279,1.21363713,2961.9,2960.7,1.20493342]
[1766480339473,1.20493342,2961.5,2960.3,4.39992111]
[1766480339674,1.20493342,2961.7,2960.3,1.37394342]
[1766480339872,1.20493342,2961.7,2960.5,1.20493342]
[1766480340770,0.00870371,2961.9,2960.7,1.20493342]
[1766480340972,1.21363713,2961.9,2960.7,1.20493342]
[1766480342581,1.21363713,2961.9,2960.3,0.16901]
[1766480342882,1.21363713,2961.9,2960.6,1.20493342]